fUST/lending_fUST_20241217
["ID","MTS","AMOUNT","RATE_DAILY","PERIOD"]
[345716677,1734431444070,-500.0,0.00024931,6]
[345716678,1734431444079,-500.0,0.00024931,6]
[345716679,1734431444088,-515.54,0.00024931,6]
[345716680,1734431444097,-500.0,0.00024931,6]
[345716681,1734431444107,-500.0,0.00024931,2]
[345716682,1734431444116,-754.12,0.00024931,6]
[345716683,1734431444126,-2075.40033246,0.00024931,5]
[345716726,1734431446349,-500.0,0.00024657,6]
[345716728,1734431446358,-500.0,0.00024657,6]
[345716730,1734431446368,-2061.35966754,0.00024931,5]
[345716732,1734431446377,-500.0,0.00024931,6]
[345716734,1734431446386,-500.0,0.00024931,6]
[345716735,1734431446395,-500.0,0.00024931,6]
[345716737,1734431446404,-2524.95,0.00024931,6]
[345716738,1734431446413,-500.0,0.00024931,6]
[345716740,1734431446422,-623.51033803,0.00024931,6]
[345716742,1734431446434,-153.93966197,0.00024931,6]
[345716744,1734431446443,-381.21033803,0.00024931,6]
[345716888,1734431731808,380.0,0.00027959,120]
[345716891,1734431910885,1000.0,0.000279,120]
[345716892,1734432371447,2554.8987379,0.00027958,120]
[345716894,1734432394424,166.402057,0.00013973,2]
[345716922,1734432632448,-321.0,0.00023854,2]
[345716988,1734432638689,-1822.6,0.00023854,2]
[345716990,1734432638699,-300.0,0.00024656,2]
[345716992,1734432638708,-300.0,0.00024656,2]
[345716994,1734432638718,-502.72861329,0.00024657,6]
[345716995,1734432638728,-500.0,0.00024657,6]
[345716997,1734432638737,-512.49600681,0.00024657,6]
[345716999,1734432638747,-515.06363514,0.00024657,6]
[345717001,1734432638757,-502.96805888,0.00024657,6]
[345717002,1734432638767,-500.0,0.00024657,6]
[345717004,1734432638777,-500.0,0.00024657,6]
[345717006,1734432638786,-500.0,0.00024657,6]
[345717007,1734432638795,-500.0,0.00024657,6]
[345717009,1734432638804,-500.0,0.00024657,6]
[345717011,1734432638813,-500.0,0.00024657,6]
[345717013,1734432638822,-8.93810392,0.00024657,6]
[345717015,1734432638834,-491.06189608,0.00024657,6]
[345717016,1734432638844,-444.0899331,0.00024657,6]
[345717027,1734432638978,-55.9100669,0.00024657,6]
[345717029,1734432638988,-245.8799331,0.00024657,6]
[345717459,1734432643472,-254.1200669,0.00024657,6]
[345717461,1734432643483,-500.0,0.00024657,6]
[345717463,1734432643492,-500.0,0.00024657,6]
[345717465,1734432643502,-500.0,0.00024657,6]
[345717467,1734432643512,-173.8599331,0.00024657,6]
[345717469,1734432643523,-326.1400669,0.00024657,6]
[345717471,1734432643533,-500.0,0.00024657,6]
[345717473,1734432643543,-282.22715084,0.00024657,6]
[345725206,1734432750802,2500.0,0.00025,120]
[345725211,1734432876030,327.0,0.00025,120]
[345725221,1734433589210,166.402057,0.00013973,2]
[345725225,1734433752082,216.0,0.00027958,120]
[345725230,1734433802831,522.1012621,0.00027959,120]
[345725407,1734433846694,-535.85,0.00021831,2]
[345725414,1734433846751,-4627.93649432,0.00021831,2]
[345725416,1734433846761,-2216.49255112,0.000219,2]
[345725418,1734433846771,-196.0,0.00022,2]
[345725420,1734433846780,-300.0,0.00023348,2]
[345725422,1734433846789,-262.99486261,0.00023349,2]
[345725424,1734433846799,-300.0,0.00023349,2]
[345725426,1734433846808,-25165.62421695,0.0002335,2]
[345725434,1734433917848,8541.34,0.0002557,120]
[345725444,1734434673255,166.402057,0.00013973,2]
[345725461,1734434985554,172.3244404,0.0002011,2]
[345725497,1734435031982,-156.81191579,0.00021159,2]
[345725499,1734435031992,-3936.59789103,0.0002125,2]
[345725501,1734435032003,-77.89703447,0.0002125,2]
[345725503,1734435032014,-899.75276835,0.00021259,2]
[345725561,1734435038743,-390.62582635,0.00021259,2]
[345725562,1734435038753,-300.0,0.00021401,2]
[345725563,1734435038763,-300.0,0.00021401,2]
[345725564,1734435038773,-5163.78649432,0.00021402,2]
[345725565,1734435038783,-319.0263002,0.00021413,2]
[345725566,1734435038793,-329.43609068,0.00021413,2]
[345725569,1734435039829,-2067.15870651,0.00021413,2]
[345725570,1734435039840,-10395.17855543,0.00021413,2]
[345725657,1734435042964,-12108.22664738,0.00021413,2]
[345725659,1734435042973,-1311.0154573,0.000219,2]
[345725661,1734435042983,-172.0,0.00022,2]
[345725663,1734435042992,-160.605051,0.00022029,2]
[345725666,1734435043002,-160.605051,0.00022066,2]
[345725668,1734435043011,-160.605051,0.00022102,2]
[345725670,1734435043022,-160.605051,0.00022139,2]
[345725671,1734435043032,-172.0,0.00022192,2]
[345725674,1734435043041,-55169.49684157,0.00022272,2]
[345725676,1734435043053,-7487.72218381,0.00022272,2]
[345725679,1734435043068,-13151.17572435,0.00022272,2]
[345725681,1734435043078,-5069.21713292,0.00022272,2]
[345725683,1734435043087,-8012.54910207,0.00022272,2]
[345725685,1734435043097,-1311.01545728,0.00022571,2]
[345725687,1734435043106,-8012.54910207,0.00022616,2]
[345725689,1734435043116,-151.633924,0.00022834,7]
[345725691,1734435043125,-196.471104,0.00022834,7]
[345725694,1734435043135,-196.471104,0.00022834,7]
[345725696,1734435043144,-151.0,0.00022834,7]
[345725698,1734435043154,-169.368648,0.00022834,7]
[345725700,1734435043163,-151.0,0.00022834,7]
[345725702,1734435043172,-151.0,0.00022834,7]
[345725704,1734435043181,-151.0,0.00022834,7]
[345725706,1734435043190,-151.0,0.00022834,7]
[345725708,1734435043200,-151.0,0.00022834,7]
[345725710,1734435043209,-151.0,0.00022834,7]
[345725712,1734435043218,-151.0,0.00022834,7]
[345725714,1734435043228,-157.36731,0.00022834,7]
[345725716,1734435043237,-944.144999,0.00022834,7]
[345725718,1734435043247,-944.144999,0.00022834,7]
[345725720,1734435043256,-151.516839,0.00022834,7]
[345725722,1734435043267,-151.0,0.00022834,7]
[345725724,1734435043276,-151.0,0.00022834,7]
[345725726,1734435043285,-8012.54910207,0.00022931,2]
[345725728,1734435043295,-153.209255,0.00022931,7]
[345725730,1734435043304,-264.335746,0.00022931,7]
[345725732,1734435043314,-153.209255,0.00022931,7]
[345725734,1734435043323,-151.0,0.00022931,7]
[345725736,1734435043333,-151.0,0.00022951,7]
[345725738,1734435043342,-151.0,0.00022951,7]
[345725740,1734435043351,-201.293777,0.00022951,7]
[345725742,1734435043360,-283.695409,0.00022951,7]
[345725744,1734435043369,-283.695409,0.00022951,7]
[345725746,1734435043378,-151.0,0.00022951,7]
[345725748,1734435043387,-151.0,0.00022951,7]
[345725750,1734435043397,-151.0,0.00022951,7]
[345725752,1734435043407,-151.0,0.00022951,7]
[345725754,1734435043416,-341.478595,0.00022951,7]
[345725756,1734435043426,-341.478595,0.00022951,7]
[345725758,1734435043435,-500.0,0.00022951,7]
[345725760,1734435043445,-500.0,0.00022951,7]
[345725762,1734435043454,-151.0,0.00022951,7]
[345725764,1734435043464,-151.0,0.00022951,7]
[345725766,1734435043473,-151.0,0.00023,7]
[345725768,1734435043483,-536.739162,0.00023,7]
[345725771,1734435043492,-536.739162,0.00023,7]
[345725772,1734435043502,-151.0,0.00023,7]
[345725775,1734435043512,-151.0,0.00023,7]
[345725776,1734435043522,-151.0,0.00023,7]
[345725778,1734435043532,-151.0,0.00023,7]
[345725780,1734435043541,-944.144999,0.00023,7]
[345725782,1734435043550,-944.144999,0.00023,7]
[345725784,1734435043559,-172.0,0.00023014,2]
[345725786,1734435043569,-8012.5491021,0.00023065,2]
[345725788,1734435043579,-153.209255,0.00023065,7]
[345725790,1734435043588,-153.209255,0.00023065,7]
[345725792,1734435043597,-151.0,0.00023065,7]
[345725794,1734435043607,-151.0,0.00023065,7]
[345725796,1734435043616,-151.0,0.00023065,7]
[345725799,1734435043626,-196.471104,0.00023174,7]
[345725801,1734435043636,-196.471104,0.00023174,7]
[345725803,1734435043646,-151.0,0.00023174,7]
[345725805,1734435043655,-151.0,0.00023174,7]
[345725807,1734435043665,-151.0,0.00023174,7]
[345725809,1734435043675,-151.0,0.00023174,7]
[345725811,1734435043685,-151.0,0.00023174,7]
[345725813,1734435043694,-151.0,0.00023174,7]
[345725815,1734435043704,-151.0,0.00023174,7]
[345725817,1734435043714,-944.144999,0.00023174,7]
[345725819,1734435043723,-944.144999,0.00023174,7]
[345725821,1734435043733,-1311.01545728,0.00023243,2]
[345725823,1734435043742,-151.0,0.00023267,7]
[345725825,1734435043752,-151.0,0.00023267,7]
[345725827,1734435043762,-283.695409,0.00023267,7]
[345725829,1734435043772,-283.695409,0.00023267,7]
[345725831,1734435043782,-151.0,0.00023267,7]
[345725833,1734435043791,-151.0,0.00023267,7]
[345725835,1734435043800,-151.0,0.00023267,7]
[345725837,1734435043810,-151.0,0.00023267,7]
[345725839,1734435043820,-341.478595,0.00023267,7]
[345725841,1734435043831,-341.478595,0.00023267,7]
[345725843,1734435043841,-500.0,0.00023267,7]
[345725845,1734435043850,-500.0,0.00023267,7]
[345725847,1734435043859,-420.0,0.0002327,2]
[345725849,1734435043869,-160.575,0.0002334,3]
[345725851,1734435043880,-420.0,0.00023541,2]
[345725853,1734435043890,-603.764,0.0002368,2]
[345725855,1734435043899,-151.0,0.0002368,7]
[345725857,1734435043908,-179.766862,0.0002368,7]
[345725859,1734435043920,-151.0,0.00023742,7]
[345725861,1734435043929,-282.64764,0.00023742,7]
[345725863,1734435043939,-282.64764,0.00023742,7]
[345725865,1734435043948,-151.0,0.00023742,7]
[345725867,1734435043957,-151.0,0.00023742,7]
[345725869,1734435043966,-151.0,0.00023742,7]
[345725871,1734435043976,-151.0,0.00023742,7]
[345725873,1734435043985,-151.0,0.00023742,7]
[345725875,1734435043994,-151.0,0.00023742,7]
[345725877,1734435044004,-151.0,0.00023742,7]
[345725879,1734435044014,-536.739162,0.00023742,7]
[345725881,1734435044023,-536.739162,0.00023742,7]
[345725883,1734435044034,-153.209255,0.00023742,7]
[345725885,1734435044043,-153.209255,0.00023742,7]
[345725887,1734435044053,-151.0,0.00023742,7]
[345725889,1734435044062,-151.0,0.00023805,7]
[345725891,1734435044072,-151.0,0.00023805,7]
[345725893,1734435044082,-162.828682,0.00023811,7]
[345725895,1734435044092,-162.828682,0.00023811,7]
[345725897,1734435044101,-151.0,0.00023811,7]
[345725899,1734435044110,-151.0,0.00023811,7]
[345725901,1734435044122,-151.0,0.00023811,7]
[345725904,1734435044131,-151.0,0.00023811,7]
[345725922,1734435044286,-196.471104,0.00023811,7]
[345725924,1734435044295,-196.471104,0.00023811,7]
[345725926,1734435044305,-151.0,0.00023811,7]
[345725928,1734435044314,-151.0,0.00023811,7]
[345725929,1734435044323,-151.0,0.00023811,7]
[345725930,1734435044332,-151.0,0.00023811,7]
[345725932,1734435044342,-151.0,0.00023811,7]
[345725934,1734435044351,-151.0,0.00023811,7]
[345725936,1734435044360,-151.0,0.00023811,7]
[345725938,1734435044369,-1467.98138574,0.00023811,7]
[345725940,1734435044379,-151.0,0.00023811,7]
[345725942,1734435044389,-151.0,0.00023811,7]
[345725944,1734435044399,-283.695409,0.00023811,7]
[345725946,1734435044408,-283.695409,0.00023811,7]
[345725948,1734435044417,-151.0,0.00023811,7]
[345725950,1734435044427,-151.0,0.00023811,7]
[345725952,1734435044436,-944.144999,0.00023811,7]
[345725954,1734435044446,-151.0,0.00023811,7]
[345725956,1734435044455,-944.144999,0.00023811,7]
[345725958,1734435044464,-151.0,0.00023811,7]
[345725960,1734435044474,-341.478595,0.00023811,7]
[345725962,1734435044483,-341.478595,0.00023811,7]
[345725964,1734435044492,-500.0,0.00023811,7]
[345725966,1734435044502,-500.0,0.00023811,7]
[345725968,1734435044511,-151.0,0.00023811,7]
[345725970,1734435044521,-1311.01545728,0.00023914,2]
[345725972,1734435044531,-151.0,0.00024079,7]
[345725974,1734435044541,-282.64764,0.00024079,7]
[345725976,1734435044550,-282.64764,0.00024079,7]
[345725978,1734435044560,-151.0,0.00024079,7]
[345725980,1734435044568,-151.0,0.00024079,7]
[345725982,1734435044579,-151.0,0.00024079,7]
[345725984,1734435044588,-267.710336,0.00024079,7]
[345725986,1734435044598,-151.0,0.00024079,7]
[345725988,1734435044608,-151.0,0.00024079,7]
[345725990,1734435044617,-151.0,0.00024079,7]
[345725992,1734435044626,-536.739162,0.00024079,7]
[345725994,1734435044636,-536.739162,0.00024079,7]
[345725996,1734435044645,-153.209255,0.00024079,7]
[345725998,1734435044655,-153.209255,0.00024079,7]
[345726000,1734435044665,-151.0,0.00024079,7]
[345726002,1734435044674,-500.0,0.00024117,2]
[345726004,1734435044683,-500.0,0.00024117,2]
[345726006,1734435044693,-500.0,0.00024117,2]
[345726008,1734435044702,-500.0,0.00024117,2]
[345726010,1734435044712,-500.0,0.00024117,2]
[345726012,1734435044721,-500.0,0.00024117,2]
[345726014,1734435044731,-358.60588436,0.00024117,2]
[345726016,1734435044740,-151.0,0.00024144,7]
[345726018,1734435044751,-151.0,0.00024144,7]
[345726020,1734435044760,-232.33303516,0.00024144,7]
[345726022,1734435044771,-151.0,0.00024144,7]
[345726024,1734435044781,-151.0,0.00024144,7]
[345726026,1734435044791,-151.0,0.00024144,7]
[345726028,1734435044800,-151.0,0.00024144,7]
[345726029,1734435044809,-151.0,0.00024144,7]
[345726030,1734435044818,-151.0,0.00024144,7]
[345726032,1734435044830,-283.695409,0.00024144,7]
[345726034,1734435044842,-283.695409,0.00024144,7]
[345726037,1734435044852,-151.0,0.00024144,7]
[345726039,1734435044861,-151.0,0.00024144,7]
[345726040,1734435044872,-944.144999,0.00024144,7]
[345726042,1734435044882,-151.0,0.00024144,7]
[345726044,1734435044891,-944.144999,0.00024144,7]
[345726046,1734435044900,-151.0,0.00024144,7]
[345726048,1734435044910,-341.478595,0.00024144,7]
[345726050,1734435044920,-341.478595,0.00024144,7]
[345726052,1734435044929,-500.0,0.00024144,7]
[345726054,1734435044938,-500.0,0.00024144,7]
[345726056,1734435044948,-151.0,0.00024144,7]
[345726058,1734435044957,-175.0,0.00024164,2]
[345726060,1734435044966,-618.38820651,0.00024177,2]
[345726062,1734435044976,-261.151742,0.00024209,7]
[345726064,1734435044985,-151.0,0.00024209,7]
[345726066,1734435044995,-151.0,0.00024209,7]
[345726068,1734435045004,-282.64764,0.00024209,7]
[345726070,1734435045013,-282.64764,0.00024209,7]
[345726071,1734435045027,-151.0,0.00024209,7]
[345726072,1734435045036,-151.0,0.00024209,7]
[345726073,1734435045046,-151.0,0.00024209,7]
[345726074,1734435045057,-196.471104,0.00024209,7]
[345726076,1734435045067,-196.471104,0.00024209,7]
[345726078,1734435045077,-151.0,0.00024209,7]
[345726080,1734435045091,-151.0,0.00024209,7]
[345726082,1734435045105,-242.76118,0.00024209,7]
[345726084,1734435045116,-1467.98138574,0.00024209,7]
[345726086,1734435045126,-153.209255,0.00024209,7]
[345726088,1734435045136,-153.209255,0.00024209,7]
[345726090,1734435045148,-151.0,0.00024209,7]
[345726092,1734435045159,-162.828682,0.00024296,7]
[345726094,1734435045169,-162.828682,0.00024296,7]
[345726096,1734435045179,-151.0,0.00024296,7]
[345726098,1734435045190,-151.0,0.00024296,7]
[345726100,1734435045200,-151.0,0.00024296,7]
[345726102,1734435045210,-151.0,0.00024296,7]
[345726104,1734435045220,-536.739162,0.00024296,7]
[345726106,1734435045230,-536.739162,0.00024296,7]
[345726108,1734435045239,-151.0,0.00024296,7]
[345726110,1734435045248,-164.990374,0.0002433,2]
[345726112,1734435045258,-151.0,0.000245,9]
[345726114,1734435045269,-3242.44213227,0.00024556,2]
[345726116,1734435045279,-151.0,0.00024556,7]
[345726118,1734435045288,-151.0,0.00024556,7]
[345726120,1734435045298,-263.218497,0.00024556,7]
[345726122,1734435045308,-162.828682,0.00024556,7]
[345726124,1734435045318,-162.828682,0.00024556,7]
[345726126,1734435045329,-151.0,0.00024556,7]
[345726128,1734435045338,-151.0,0.00024556,7]
[345726130,1734435045348,-151.0,0.00024556,7]
[345726132,1734435045358,-151.0,0.00024556,7]
[345726134,1734435045368,-151.0,0.00024556,7]
[345726135,1734435045377,-151.0,0.00024556,7]
[345726136,1734435045387,-151.0,0.00024556,7]
[345726137,1734435045397,-282.64764,0.00024556,7]
[345726138,1734435045406,-282.64764,0.00024556,7]
[345726139,1734435045416,-151.0,0.00024556,7]
[345726140,1734435045425,-151.0,0.00024556,7]
[345726141,1734435045435,-151.0,0.00024556,7]
[345726142,1734435045444,-169.681385,0.00024556,7]
[345726143,1734435045454,-151.0,0.00024556,7]
[345726144,1734435045463,-536.739162,0.00024556,7]
[345726145,1734435045473,-536.739162,0.00024556,7]
[345726146,1734435045483,-196.471104,0.00024556,7]
[345726147,1734435045492,-196.471104,0.00024556,7]
[345726148,1734435045502,-196.471104,0.00024556,7]
[345726149,1734435045511,-196.471104,0.00024556,7]
[345726150,1734435045521,-151.0,0.00024556,7]
[345726151,1734435045531,-243.941434,0.00024556,7]
[345726152,1734435045541,-151.0,0.00024556,7]
[345726153,1734435045551,-151.0,0.00024556,7]
[345726154,1734435045560,-151.0,0.00024556,7]
[345726155,1734435045569,-151.0,0.00024556,7]
[345726156,1734435045578,-151.0,0.00024556,7]
[345726157,1734435045587,-151.0,0.00024556,7]
[345726158,1734435045598,-151.0,0.00024556,7]
[345726159,1734435045607,-151.0,0.00024556,7]
[345726160,1734435045617,-151.0,0.00024556,7]
[345726161,1734435045626,-218.010155,0.00024556,7]
[345726162,1734435045635,-1467.98138574,0.00024556,7]
[345726163,1734435045645,-151.0,0.00024556,7]
[345726164,1734435045655,-151.0,0.00024556,7]
[345726165,1734435045664,-283.695409,0.00024556,7]
[345726166,1734435045674,-283.695409,0.00024556,7]
[345726167,1734435045683,-283.695409,0.00024556,7]
[345726168,1734435045692,-283.695409,0.00024556,7]
[345726169,1734435045702,-151.0,0.00024556,7]
[345726170,1734435045711,-171.074604,0.00024556,7]
[345726171,1734435045720,-151.0,0.00024556,7]
[345726172,1734435045729,-151.0,0.00024556,7]
[345726173,1734435045738,-944.144999,0.00024556,7]
[345726174,1734435045747,-944.144999,0.00024556,7]
[345726175,1734435045756,-151.0,0.00024556,7]
[345726176,1734435045766,-151.0,0.00024556,7]
[345726177,1734435045776,-944.144999,0.00024556,7]
[345726178,1734435045785,-944.144999,0.00024556,7]
[345726179,1734435045795,-155.436416,0.00024556,7]
[345726180,1734435045804,-2013.2357592,0.00024556,2]
[345726181,1734435045814,-341.478595,0.00024556,7]
[345726182,1734435045824,-341.478595,0.00024556,7]
[345726183,1734435045836,-341.478595,0.00024556,7]
[345726184,1734435045845,-341.478595,0.00024556,7]
[345726185,1734435045855,-153.209255,0.00024556,7]
[345726187,1734435045864,-153.209255,0.00024556,7]
[345726189,1734435045875,-153.209255,0.00024556,7]
[345726190,1734435045885,-153.209255,0.00024556,7]
[345726192,1734435045894,-500.0,0.00024556,7]
[345726193,1734435045903,-500.0,0.00024556,7]
[345726195,1734435045913,-500.0,0.00024556,7]
[345726197,1734435045923,-151.0,0.00024556,7]
[345726199,1734435045932,-151.0,0.00024556,7]
[345726201,1734435045942,-500.0,0.00024556,7]
[345726203,1734435045952,-151.0,0.00024556,7]
[345726205,1734435045962,-259.393172,0.00024556,7]
[345726206,1734435045971,-1645.727338,0.00024556,2]
[345726208,1734435045980,-666.0,0.00024557,2]
[345726210,1734435045989,-151.0,0.00024557,7]
[345726212,1734435045998,-536.739162,0.00024557,7]
[345726214,1734435046008,-536.739162,0.00024557,7]
[345726216,1734435046017,-151.0,0.00024557,7]
[345726218,1734435046026,-151.0,0.00024557,7]
[345726220,1734435046035,-151.0,0.00024557,7]
[345726221,1734435046044,-151.0,0.00024557,7]
[345726222,1734435046054,-283.695409,0.00024557,7]
[345726223,1734435046063,-283.695409,0.00024557,7]
[345726225,1734435046073,-944.144999,0.00024557,7]
[345726226,1734435046083,-944.144999,0.00024557,7]
[345726228,1734435046092,-151.0,0.00024578,7]
[345726229,1734435046102,-282.64764,0.00024578,7]
[345726230,1734435046111,-282.64764,0.00024578,7]
[345726231,1734435046120,-151.0,0.00024578,7]
[345726232,1734435046130,-151.0,0.00024578,7]
[345726233,1734435046139,-151.0,0.00024578,7]
[345726234,1734435046151,-151.0,0.00024578,7]
[345726235,1734435046163,-341.478595,0.00024578,7]
[345726236,1734435046176,-341.478595,0.00024578,7]
[345726237,1734435046185,-153.209255,0.00024578,7]
[345726238,1734435046194,-153.209255,0.00024578,7]
[345726239,1734435046203,-500.0,0.00024578,7]
[345726240,1734435046213,-500.0,0.00024578,7]
[345726241,1734435046222,-151.0,0.00024578,7]
[345726242,1734435046231,-1311.01545728,0.00024586,2]
[345726243,1734435046241,-2084.58049731,0.000246,2]
[345726244,1734435046250,-196.471104,0.000246,7]
[345726245,1734435046259,-196.471104,0.000246,7]
[345726246,1734435046269,-151.0,0.000246,7]
[345726247,1734435046278,-2013.23575918,0.00024625,2]
[345726248,1734435046288,-153.209255,0.00024655,7]
[345726249,1734435046297,-153.209255,0.00024655,7]
[345726250,1734435046306,-153.209255,0.00024655,7]
[345726251,1734435046316,-153.209261,0.00024655,7]
[345726252,1734435046325,-151.0,0.00024655,7]
[345726253,1734435046335,-573.53643536,0.00024655,2]
[345726254,1734435046344,-225.87804396,0.00024655,2]
[345726255,1734435046354,-208.71032788,0.00024655,2]
[345726256,1734435046364,-377.65075183,0.00024655,2]
[345726257,1734435046373,-500.0,0.00024655,2]
[345726258,1734435046382,-500.0,0.00024655,2]
[345726259,1734435046392,-214.98109236,0.00024655,2]
[345726260,1734435046402,-500.0,0.00024655,2]
[345726261,1734435046411,-500.0,0.00024655,2]
[345726262,1734435046420,-500.0,0.00024655,2]
[345726263,1734435046429,-500.0,0.00024655,2]
[345726264,1734435046438,-500.0,0.00024655,2]
[345726265,1734435046447,-500.0,0.00024655,2]
[345726266,1734435046457,-500.0,0.00024655,2]
[345726267,1734435046467,-500.0,0.00024655,2]
[345726268,1734435046476,-500.0,0.00024655,2]
[345726269,1734435046485,-500.0,0.00024655,2]
[345726270,1734435046495,-500.0,0.00024655,2]
[345726271,1734435046504,-500.0,0.00024655,2]
[345726272,1734435046516,-500.0,0.00024655,2]
[345726273,1734435046526,-500.0,0.00024655,2]
[345726274,1734435046535,-500.0,0.00024655,2]
[345726275,1734435046544,-500.0,0.00024655,2]
[345726276,1734435046553,-500.0,0.00024655,2]
[345726277,1734435046562,-500.0,0.00024655,2]
[345726278,1734435046572,-358.23271518,0.00024655,2]
[345726279,1734435046581,-500.0,0.00024655,2]
[345726280,1734435046590,-500.0,0.00024655,2]
[345726281,1734435046599,-575.01540215,0.00024655,2]
[345726282,1734435046608,-500.0,0.00024655,2]
[345726283,1734435046618,-500.0,0.00024655,2]
[345726284,1734435046628,-500.0,0.00024655,2]
[345726285,1734435046637,-500.0,0.00024655,2]
[345726286,1734435046646,-500.0,0.00024655,2]
[345726287,1734435046658,-500.0,0.00024655,2]
[345726288,1734435046668,-500.0,0.00024655,2]
[345726289,1734435046678,-500.0,0.00024655,2]
[345726290,1734435046689,-500.0,0.00024655,2]
[345726291,1734435046699,-500.0,0.00024655,2]
[345726292,1734435046710,-500.0,0.00024655,2]
[345726293,1734435046720,-500.0,0.00024655,2]
[345726294,1734435046730,-500.0,0.00024655,2]
[345726295,1734435046739,-500.0,0.00024655,2]
[345726296,1734435046749,-500.0,0.00024655,2]
[345726297,1734435046758,-500.0,0.00024655,2]
[345726298,1734435046769,-500.0,0.00024655,2]
[345726299,1734435046778,-500.0,0.00024655,2]
[345726300,1734435046787,-500.0,0.00024655,2]
[345726301,1734435046797,-500.0,0.00024655,2]
[345726302,1734435046806,-515.0,0.00024655,2]
[345726303,1734435046815,-500.0,0.00024655,2]
[345726304,1734435046825,-500.0,0.00024655,2]
[345726305,1734435046838,-500.0,0.00024655,2]
[345726306,1734435046848,-500.0,0.00024655,2]
[345726307,1734435046857,-500.0,0.00024655,2]
[345726308,1734435046867,-500.0,0.00024655,2]
[345726309,1734435046876,-500.0,0.00024655,2]
[345726310,1734435046886,-500.0,0.00024655,2]
[345726311,1734435046895,-500.0,0.00024655,2]
[345726312,1734435046906,-500.0,0.00024655,2]
[345726313,1734435046915,-500.0,0.00024655,2]
[345726314,1734435046925,-500.0,0.00024655,2]
[345726315,1734435046934,-500.0,0.00024655,2]
[345726316,1734435046943,-500.0,0.00024655,2]
[345726317,1734435046952,-500.0,0.00024655,2]
[345726318,1734435046962,-500.0,0.00024655,2]
[345726319,1734435046971,-500.0,0.00024655,2]
[345726320,1734435046981,-256.23984045,0.00024655,2]
[345726321,1734435046990,-500.0,0.00024655,2]
[345726322,1734435046999,-500.0,0.00024655,2]
[345726323,1734435047009,-500.0,0.00024655,2]
[345726324,1734435047020,-500.0,0.00024655,2]
[345726325,1734435047030,-500.0,0.00024655,2]
[345726326,1734435047040,-500.0,0.00024655,2]
[345726327,1734435047050,-500.0,0.00024655,2]
[345726328,1734435047059,-500.0,0.00024655,2]
[345726329,1734435047069,-500.0,0.00024655,2]
[345726330,1734435047079,-500.0,0.00024655,2]
[345726331,1734435047088,-1000.0,0.00024656,2]
[345726332,1734435047098,-1000.0,0.00024656,4]
[345726333,1734435047107,-151.0,0.00024656,7]
[345726334,1734435047117,-151.0,0.00024656,7]
[345726335,1734435047127,-151.0,0.00024656,7]
[345726336,1734435047137,-255.965858,0.00024656,7]
[345726337,1734435047147,-26607.91495361,0.00024656,2]
[345726338,1734435047156,-162.828682,0.00024656,7]
[345726339,1734435047166,-162.828682,0.00024656,7]
[345726340,1734435047175,-162.828682,0.00024656,7]
[345726341,1734435047184,-162.828682,0.00024656,7]